fUST/lending_fUST_20241107
["ID","MTS","AMOUNT","RATE_DAILY","PERIOD"]
[341499205,1730927444574,-500.0,0.00027671,2]
[341499207,1730927444584,-4959.32,0.00027671,2]
[341499209,1730927444593,-500.0,0.00027671,2]
[341499211,1730927444604,-500.0,0.00027671,2]
[341499213,1730927444613,-500.0,0.00027671,2]
[341499216,1730927444623,-500.0,0.00027671,2]
[341499218,1730927444632,-659.67,0.00027671,2]
[341499220,1730927444641,-528.51177373,0.00027671,2]
[341499221,1730927444651,-500.0,0.00027671,2]
[341499223,1730927444660,-151.0,0.00027671,7]
[341499225,1730927444670,-151.0,0.00027671,7]
[341499227,1730927444679,-950.36,0.00027671,2]
[341499229,1730927444688,-210.383978,0.00027671,7]
[341499231,1730927444698,-210.383978,0.00027671,7]
[341499233,1730927444708,-500.0,0.00027671,2]
[341499235,1730927444717,-210.383978,0.00027671,7]
[341499238,1730927444728,-210.383978,0.00027671,7]
[341499240,1730927444738,-151.0,0.00027671,7]
[341499242,1730927444748,-151.0,0.00027671,7]
[341499244,1730927444757,-151.0,0.00027671,7]
[341499246,1730927444767,-151.0,0.00027671,7]
[341499247,1730927444776,-151.0,0.00027671,7]
[341499249,1730927444785,-500.0,0.00027671,2]
[341499251,1730927444795,-500.0,0.00027671,2]
[341499254,1730927444807,-500.0,0.00027671,2]
[341499255,1730927444818,-500.0,0.00027671,2]
[341499257,1730927444827,-500.0,0.00027671,2]
[341499259,1730927444837,-500.0,0.00027671,2]
[341499261,1730927444847,-500.0,0.00027671,2]
[341499263,1730927444857,-500.0,0.00027671,2]
[341499266,1730927444868,-500.0,0.00027671,2]
[341499268,1730927444877,-500.0,0.00027671,2]
[341499270,1730927444889,-500.0,0.00027671,2]
[341499271,1730927444898,-500.0,0.00027671,2]
[341499273,1730927444908,-335.544236,0.00027671,7]
[341499276,1730927444918,-335.544236,0.00027671,7]
[341499278,1730927444927,-437.68030177,0.00027671,2]
[341499280,1730927444939,-500.0,0.00027671,2]
[341499282,1730927444950,-500.0,0.00027671,2]
[341499283,1730927444959,-500.0,0.00027671,2]
[341499285,1730927444970,-151.0,0.00027671,7]
[341499287,1730927444980,-335.544236,0.00027671,7]
[341499289,1730927444990,-335.544236,0.00027671,7]
[341499299,1730927445084,-500.0,0.00027671,2]
[341499300,1730927445094,-508.89,0.00027671,2]
[341499301,1730927445106,-500.0,0.00027671,2]
[341499302,1730927445117,-500.0,0.00027671,2]
[341499303,1730927445129,-577.37,0.00027671,2]
[341499304,1730927445139,-500.0,0.00027671,2]
[341499305,1730927445149,-527.50054657,0.00027671,2]
[341499306,1730927445158,-500.0,0.00027671,2]
[341499307,1730927445168,-655.23,0.00027671,2]
[341499308,1730927445177,-500.0,0.00027671,2]
[341499309,1730927445187,-500.0,0.00027671,2]
[341499310,1730927445196,-500.0,0.00027671,2]
[341499311,1730927445206,-500.0,0.00027671,2]
[341499312,1730927445215,-500.0,0.00027671,2]
[341499313,1730927445225,-347.65283181,0.00027671,2]
[341499314,1730927445234,-500.0,0.00027671,2]
[341499315,1730927445244,-546.8855663,0.00027671,2]
[341499316,1730927445254,-151.0,0.00027671,7]
[341499317,1730927445264,-151.0,0.00027671,7]
[341499318,1730927445273,-643.58960014,0.00027671,2]
[341499319,1730927445283,-151.0,0.00027671,7]
[341499320,1730927445292,-151.0,0.00027671,7]
[341499321,1730927445302,-451.0,0.00027671,2]
[341499322,1730927445311,-501.46681774,0.00027673,5]
[341499323,1730927445321,-151.0,0.00027673,7]
[341499324,1730927445331,-151.0,0.00027673,7]
[341499325,1730927445341,-151.0,0.00027673,7]
[341499326,1730927445352,-151.0,0.00027673,7]
[341499327,1730927445363,-151.0,0.00027673,7]
[341499328,1730927445373,-151.0,0.00027673,7]
[341499329,1730927445383,-151.0,0.00027673,7]
[341499330,1730927445393,-151.0,0.00027673,7]
[341499331,1730927445403,-151.0,0.00027673,7]
[341499332,1730927445413,-151.0,0.00027673,7]
[341499333,1730927445423,-178.740124,0.00027673,7]
[341499334,1730927445432,-171.195903,0.00027673,7]
[341499335,1730927445443,-171.195903,0.00027673,7]
[341499336,1730927445453,-171.195903,0.00027673,7]
[341499337,1730927445463,-171.195903,0.00027673,7]
[341499338,1730927445473,-394.34697,0.00027673,7]
[341499339,1730927445483,-394.34697,0.00027673,7]
[341499340,1730927445493,-394.34697,0.00027673,7]
[341499341,1730927445502,-394.34697,0.00027673,7]
[341499342,1730927445512,-151.0,0.00027673,7]
[341499343,1730927445521,-151.0,0.00027673,7]
[341499344,1730927445531,-349.827828,0.00027673,7]
[341499345,1730927445540,-349.827828,0.00027673,7]
[341499346,1730927445550,-498.026989,0.00027673,7]
[341499347,1730927445560,-498.026989,0.00027673,7]
[341499348,1730927445569,-559.746466,0.00027673,7]
[341499349,1730927445578,-559.746466,0.00027673,7]
[341499350,1730927445588,-349.827828,0.00027673,7]
[341499351,1730927445598,-349.827828,0.00027673,7]
[341499352,1730927445610,-498.026989,0.00027673,7]
[341499353,1730927445620,-498.026989,0.00027673,7]
[341499354,1730927445629,-559.746466,0.00027673,7]
[341499355,1730927445639,-559.746466,0.00027673,7]
[341499356,1730927445648,-210.383978,0.00027673,7]
[341499357,1730927445658,-210.383978,0.00027673,7]
[341499358,1730927445667,-151.0,0.00027673,7]
[341499359,1730927445677,-151.0,0.00027673,7]
[341499360,1730927445686,-335.544236,0.00027673,7]
[341499361,1730927445696,-335.544236,0.00027673,7]
[341499362,1730927445705,-335.544236,0.00027673,7]
[341499363,1730927445715,-335.544236,0.00027673,7]
[341499364,1730927445724,-1000.0,0.00027673,28]
[341499365,1730927445733,-1000.0,0.00027673,28]
[341499366,1730927445744,-1000.0,0.00027673,28]
[341499367,1730927445757,-1000.0,0.00027673,28]
[341499368,1730927445767,-1000.0,0.00027673,28]
[341499369,1730927445777,-1000.0,0.00027673,28]
[341499370,1730927445788,-1000.0,0.00027673,28]
[341499371,1730927445798,-1000.0,0.00027673,28]
[341499372,1730927445811,-1000.0,0.00027673,28]
[341499373,1730927445820,-1000.0,0.00027673,28]
[341499374,1730927445830,-1000.0,0.00027673,28]
[341499375,1730927445840,-1000.0,0.00027673,28]
[341499376,1730927445850,-1000.0,0.00027673,28]
[341499377,1730927445861,-1000.0,0.00027673,28]
[341499378,1730927445871,-1000.0,0.00027673,28]
[341499379,1730927445882,-1000.0,0.00027673,28]
[341499380,1730927445892,-1000.0,0.00027673,28]
[341499381,1730927445901,-1000.0,0.00027673,28]
[341499382,1730927445911,-1000.0,0.00027673,28]
[341499383,1730927445921,-1000.0,0.00027673,28]
[341499384,1730927445931,-1000.0,0.00027673,28]
[341499385,1730927445940,-1000.0,0.00027673,28]
[341499386,1730927445950,-1000.0,0.00027673,28]
[341499387,1730927445960,-1000.0,0.00027673,28]
[341499388,1730927445970,-1000.0,0.00027673,28]
[341499389,1730927445980,-1000.0,0.00027673,28]
[341499390,1730927445990,-1000.0,0.00027673,28]
[341499391,1730927446000,-1000.0,0.00027673,28]
[341499392,1730927446009,-1000.0,0.00027673,28]
[341499393,1730927446020,-1000.0,0.00027673,28]
[341499394,1730927446029,-1000.0,0.00027673,28]
[341499395,1730927446038,-1000.0,0.00027673,28]
[341499396,1730927446047,-1000.0,0.00027673,28]
[341499397,1730927446056,-1000.0,0.00027673,28]
[341499398,1730927446066,-1000.0,0.00027673,28]
[341499399,1730927446075,-1000.0,0.00027673,28]
[341499400,1730927446086,-1000.0,0.00027673,28]
[341499401,1730927446095,-1000.0,0.00027673,28]
[341499402,1730927446106,-1000.0,0.00027673,28]
[341499403,1730927446115,-1000.0,0.00027673,28]
[341499404,1730927446124,-1000.0,0.00027673,28]
[341499405,1730927446135,-1000.0,0.00027673,28]
[341499406,1730927446144,-1052.37512873,0.00027673,28]
[341499407,1730927446154,-151.0,0.00027673,7]
[341499408,1730927446164,-182.59584,0.00027673,7]
[341499409,1730927446173,-200.0,0.0002788,19]
[341499410,1730927446182,-500.0,0.00027945,2]
[341499411,1730927446192,-500.0,0.00027945,2]
[341499413,1730927446201,-500.0,0.00027945,2]
[341499414,1730927446211,-500.0,0.00027945,2]
[341499415,1730927446220,-258.32812302,0.00027945,2]
[341499416,1730927446230,-500.0,0.00027945,2]
[341499417,1730927446239,-327.66530371,0.00027945,2]
[341499418,1730927446249,-151.0,0.00027945,7]
[341499419,1730927446259,-151.0,0.00027945,7]
[341499420,1730927446269,-635.68649334,0.00027945,2]
[341499421,1730927446278,-500.0,0.00027945,2]
[341499422,1730927446289,-500.0,0.00027945,2]
[341499423,1730927446299,-151.0,0.00027945,7]
[341499424,1730927446309,-151.0,0.00027945,7]
[341499425,1730927446319,-151.0,0.00027945,7]
[341499426,1730927446328,-151.0,0.00027945,7]
[341499427,1730927446338,-303.50735789,0.00027945,2]
[341499428,1730927446348,-257.6048748,0.00027945,2]
[341499429,1730927446361,-151.0,0.00027945,7]
[341499430,1730927446370,-151.0,0.00027945,7]
[341499431,1730927446381,-151.0,0.00027945,7]
[341499432,1730927446392,-194.476178,0.00027945,7]
[341499433,1730927446402,-576.30016349,0.00027945,2]
[341499434,1730927446413,-500.0,0.00027945,2]
[341499435,1730927446423,-500.0,0.00027945,2]
[341499436,1730927446433,-618.27017854,0.00027945,2]
[341499437,1730927446444,-314.22347126,0.00027945,2]
[341499438,1730927446454,-151.0,0.00027945,7]
[341499439,1730927446464,-500.0,0.00027945,2]
[341499440,1730927446475,-171.195903,0.00027945,7]
[341499441,1730927446486,-171.195903,0.00027945,7]
[341499442,1730927446496,-500.0,0.00027945,2]
[341499443,1730927446508,-500.0,0.00027945,2]
[341499444,1730927446519,-500.0,0.00027945,2]
[341499445,1730927446530,-500.0,0.00027945,2]
[341499446,1730927446540,-500.0,0.00027945,2]
[341499447,1730927446550,-1867.2,0.00027945,2]
[341499448,1730927446560,-500.0,0.00027945,2]
[341499449,1730927446570,-500.0,0.00027945,2]
[341499450,1730927446580,-158.83318044,0.00027945,2]
[341499451,1730927446591,-500.0,0.00027945,2]
[341499452,1730927446600,-500.0,0.00027945,2]
[341499453,1730927446619,-500.0,0.00027945,2]
[341499454,1730927446629,-394.34697,0.00027945,7]
[341499455,1730927446639,-500.0,0.00027945,2]
[341499456,1730927446649,-394.34697,0.00027945,7]
[341499457,1730927446660,-500.0,0.00027945,2]
[341499458,1730927446669,-216.98936677,0.00027945,2]
[341499459,1730927446679,-784.82,0.00027945,2]
[341499460,1730927446688,-8019.87,0.00027945,2]
[341499461,1730927446698,-151.0,0.00027945,7]
[341499462,1730927446708,-349.827828,0.00027945,7]
[341499463,1730927446717,-498.026989,0.00027945,7]
[341499464,1730927446727,-559.746466,0.00027945,7]
[341499465,1730927446737,-349.827828,0.00027945,7]
[341499466,1730927446746,-500.0,0.00027945,2]
[341499467,1730927446755,-498.026989,0.00027945,7]
[341499468,1730927446765,-559.746466,0.00027945,7]
[341499469,1730927446774,-500.0,0.00027945,2]
[341499470,1730927446784,-500.0,0.00027945,2]
[341499471,1730927446795,-500.0,0.00027945,2]
[341499472,1730927446804,-4959.32,0.00027945,2]
[341499473,1730927446817,-500.0,0.00027945,2]
[341499474,1730927446826,-500.0,0.00027945,2]
[341499475,1730927446835,-500.0,0.00027945,2]
[341499476,1730927446846,-500.0,0.00027945,2]
[341499477,1730927446858,-659.67,0.00027945,2]
[341499478,1730927446867,-500.0,0.00027945,2]
[341499479,1730927446876,-950.36,0.00027945,2]
[341499480,1730927446888,-210.383978,0.00027945,7]
[341499481,1730927446898,-210.383978,0.00027945,7]
[341499482,1730927446907,-500.0,0.00027945,2]
[341499483,1730927446917,-210.383978,0.00027945,7]
[341499484,1730927446926,-210.383978,0.00027945,7]
[341499485,1730927446936,-151.0,0.00027945,7]
[341499486,1730927447025,-500.0,0.00027945,2]
[341499487,1730927447034,-500.0,0.00027945,2]
[341499488,1730927447046,-500.0,0.00027945,2]
[341499489,1730927447057,-500.0,0.00027945,2]
[341499490,1730927447067,-500.0,0.00027945,2]
[341499491,1730927447075,-500.0,0.00027945,2]
[341499492,1730927447085,-500.0,0.00027945,2]
[341499493,1730927447095,-335.544236,0.00027945,7]
[341499494,1730927447109,-500.0,0.00027945,2]
[341499495,1730927447118,-500.0,0.00027945,2]
[341499496,1730927447129,-335.544236,0.00027945,7]
[341499497,1730927447138,-500.0,0.00027945,2]
[341499498,1730927447148,-508.89,0.00027945,2]
[341499499,1730927447157,-500.0,0.00027945,2]
[341499500,1730927447167,-500.0,0.00027945,2]
[341499501,1730927447176,-225.78845566,0.00027945,2]
[341499502,1730927447186,-655.23,0.00027945,2]
[341499503,1730927447196,-500.0,0.00027945,2]
[341499504,1730927447206,-506.93896937,0.00027945,2]
[341499505,1730927447215,-500.0,0.00027945,2]
[341499506,1730927447225,-500.0,0.00027945,2]
[341499507,1730927447234,-500.0,0.00027945,2]
[341499508,1730927447244,-151.0,0.00027945,7]
[341499509,1730927447253,-151.0,0.00027945,7]
[341499510,1730927447263,-500.0,0.00027973,5]
[341499511,1730927447272,-500.0,0.00027973,2]
[341499512,1730927447281,-500.0,0.00027973,5]
[341499513,1730927447290,-500.0,0.00027973,5]
[341499514,1730927447299,-500.0,0.00027973,5]
[341499515,1730927447308,-500.0,0.00027973,5]
[341499517,1730927447317,-500.0,0.00027973,5]
[341499519,1730927447327,-500.0,0.00027973,5]
[341499521,1730927447337,-500.0,0.00027973,5]
[341499523,1730927447347,-500.0,0.00027973,5]
[341499525,1730927447360,-335.544236,0.00027973,7]
[341499527,1730927447370,-335.544236,0.00027973,7]
[341499529,1730927447380,-31916.20881737,0.0002799,2]
[341499531,1730927447390,-151.0,0.0002799,7]
[341499533,1730927447400,-151.0,0.0002799,7]
[341499535,1730927447410,-152.443814,0.0002799,7]
[341499537,1730927447419,-151.0,0.0002799,7]
[341499539,1730927447428,-151.0,0.0002799,7]
[341499541,1730927447439,-171.195903,0.0002799,7]
[341499543,1730927447449,-171.195903,0.0002799,7]
[341499546,1730927447459,-394.34697,0.0002799,7]
[341499548,1730927447468,-394.34697,0.0002799,7]
[341499550,1730927447478,-151.0,0.0002799,7]
[341499552,1730927447487,-349.827828,0.0002799,7]
[341499554,1730927447496,-498.026989,0.0002799,7]
[341499556,1730927447506,-559.746466,0.0002799,7]
[341499558,1730927447515,-349.827828,0.0002799,7]
[341499560,1730927447524,-498.026989,0.0002799,7]
[341499562,1730927447533,-559.746466,0.0002799,7]
[341499563,1730927447542,-210.383978,0.0002799,7]
[341499565,1730927447552,-210.383978,0.0002799,7]
[341499567,1730927447560,-335.544236,0.0002799,7]
[341499569,1730927447570,-335.544236,0.0002799,7]
[341499571,1730927447579,-151.0,0.0002799,7]
[341499573,1730927447588,-153.0,0.00027995,30]
[341499575,1730927447597,-153.0,0.00027995,30]
[341499577,1730927447610,-153.0,0.00027995,30]
[341499579,1730927447620,-153.0,0.00027995,30]
[341499581,1730927447629,-153.0,0.00027995,30]
[341499583,1730927447638,-306.0,0.00027995,30]
[341499585,1730927447648,-153.0,0.00027995,30]
[341499587,1730927447658,-337.67752292,0.00027999,2]
[341499589,1730927447667,-214.252,0.00028187,19]
[341499591,1730927447676,-150.0,0.00028198,2]
[341499593,1730927447685,-250.0,0.00028198,2]
[341499595,1730927447695,-500.0,0.00028219,2]
[341499597,1730927447704,-500.0,0.00028219,2]
[341499599,1730927447713,-500.0,0.00028219,2]
[341499601,1730927447722,-500.0,0.00028219,2]
[341499603,1730927447731,-500.0,0.00028219,2]
[341499605,1730927447740,-151.0,0.00028219,7]
[341499607,1730927447749,-500.0,0.00028219,2]
[341499609,1730927447758,-519.46326158,0.00028219,2]
[341499611,1730927447768,-151.0,0.00028219,7]
[341499613,1730927447777,-151.0,0.00028219,7]
[341499615,1730927447786,-500.0,0.00028219,2]
[341499617,1730927447795,-500.0,0.00028219,2]
[341499619,1730927447805,-151.0,0.00028219,7]
[341499621,1730927447819,-500.0,0.00028219,2]
[341499622,1730927447829,-171.195903,0.00028219,7]
[341499623,1730927447840,-171.195903,0.00028219,7]
[341499624,1730927447852,-500.0,0.00028219,2]
[341499625,1730927447862,-436.23,0.00028219,2]
[341499626,1730927447872,-500.0,0.00028219,2]
[341499627,1730927447882,-500.0,0.00028219,2]
[341499628,1730927447892,-602.35,0.00028219,2]
[341499629,1730927447901,-1867.2,0.00028219,2]
[341499630,1730927447911,-500.0,0.00028219,2]
[341499631,1730927447921,-500.0,0.00028219,2]
[341499632,1730927447929,-500.0,0.00028219,2]
[341499633,1730927447939,-500.0,0.00028219,2]
[341499634,1730927447948,-500.0,0.00028219,2]
[341499635,1730927447957,-394.34697,0.00028219,7]
[341499636,1730927447966,-500.0,0.00028219,2]
[341499637,1730927447978,-394.34697,0.00028219,7]
[341499638,1730927447987,-500.0,0.00028219,2]
[341499639,1730927447997,-784.82,0.00028219,2]
[341499640,1730927448007,-8019.87,0.00028219,2]
[341499641,1730927448018,-151.0,0.00028219,7]
[341499642,1730927448027,-349.827828,0.00028219,7]
[341499643,1730927448037,-498.026989,0.00028219,7]
[341499644,1730927448046,-559.746466,0.00028219,7]
[341499645,1730927448056,-500.0,0.00028219,2]
[341499646,1730927448065,-349.827828,0.00028219,7]
[341499647,1730927448075,-498.026989,0.00028219,7]
[341499648,1730927448085,-559.746466,0.00028219,7]
[341499649,1730927448095,-500.0,0.00028219,2]
[341499650,1730927448106,-500.0,0.00028219,2]
[341499651,1730927448115,-500.0,0.00028219,2]
[341499652,1730927448125,-4959.32,0.00028219,2]
[341499653,1730927448134,-500.0,0.00028219,2]
[341499654,1730927448143,-500.0,0.00028219,2]
[341499655,1730927448153,-631.60216647,0.00028219,2]
[341499656,1730927448162,-659.67,0.00028219,2]
[341499657,1730927448172,-500.0,0.00028219,2]
[341499658,1730927448181,-950.36,0.00028219,2]
[341499659,1730927448190,-210.383978,0.00028219,7]
[341499660,1730927448200,-210.383978,0.00028219,7]
[341499661,1730927448210,-500.0,0.00028219,2]
[341499662,1730927448220,-500.0,0.00028219,2]
[341499663,1730927448230,-500.0,0.00028219,2]
[341499664,1730927448239,-436.89,0.00028219,2]
[341499665,1730927448249,-500.0,0.00028219,2]
[341499666,1730927448258,-500.0,0.00028219,2]
[341499667,1730927448268,-500.0,0.00028219,2]
[341499668,1730927448277,-335.544236,0.00028219,7]
[341499669,1730927448287,-500.0,0.00028219,2]
[341499670,1730927448297,-586.12787329,0.00028219,2]
[341499671,1730927448306,-578.17,0.00028219,2]
[341499672,1730927448316,-335.544234,0.00028219,7]
[341499673,1730927448325,-508.89,0.00028219,2]
[341499674,1730927448335,-500.0,0.00028219,2]
[341499676,1730927448345,-500.0,0.00028219,2]
[341499678,1730927448356,-655.23,0.00028219,2]
[341499680,1730927448366,-500.0,0.00028219,2]
[341499682,1730927448375,-500.0,0.00028219,2]
[341499684,1730927448385,-500.0,0.00028219,2]
[341499686,1730927448395,-151.0,0.00028219,7]
[341499688,1730927448405,-3618.06202881,0.00028245,2]
[341499690,1730927448418,-337.67752292,0.00028349,2]
[341499692,1730927448427,-500.0,0.00028493,2]
[341499693,1730927448437,-500.0,0.00028493,2]
[341499694,1730927448448,-500.0,0.00028493,2]
[341499695,1730927448458,-500.0,0.00028493,2]
[341499697,1730927448467,-500.0,0.00028493,2]
[341499699,1730927448477,-223.111772,0.00028493,7]
[341499700,1730927448487,-500.0,0.00028493,2]
[341499701,1730927448496,-151.0,0.00028493,7]
[341499702,1730927448506,-151.0,0.00028493,7]
[341499704,1730927448516,-500.0,0.00028493,2]
[341499706,1730927448526,-397.27380945,0.00028493,2]
[341499708,1730927448535,-269.924315,0.00028493,7]
[341499709,1730927448545,-171.195903,0.00028493,7]
[341499710,1730927448554,-171.195903,0.00028493,7]
[341499711,1730927448564,-500.0,0.00028493,2]
[341499713,1730927448573,-500.0,0.00028493,2]
[341499715,1730927448582,-203.11386849,0.00028493,2]
[341499717,1730927448592,-1867.2,0.00028493,2]
[341499718,1730927448602,-298.16828806,0.00028493,2]
[341499721,1730927448615,-500.0,0.00028493,2]
[341499723,1730927448624,-225.68713402,0.00028493,2]
[341499725,1730927448634,-500.0,0.00028493,2]
[341499727,1730927448643,-500.0,0.00028493,2]
[341499728,1730927448652,-394.34697,0.00028493,7]
[341499730,1730927448662,-500.0,0.00028493,2]
[341499732,1730927448671,-394.346974,0.00028493,7]
[341499742,1730927448744,-500.0,0.00028493,2]
[341499744,1730927448762,-784.82,0.00028493,2]
[341499745,1730927448773,-8019.87,0.00028493,2]
[341499746,1730927448782,-151.0,0.00028493,7]
[341499747,1730927448791,-349.827828,0.00028493,7]
[341499748,1730927448801,-498.026989,0.00028493,7]
[341499749,1730927448812,-559.746466,0.00028493,7]
[341499751,1730927448824,-500.0,0.00028493,2]
[341499752,1730927448834,-349.82783,0.00028493,7]
[341499753,1730927448844,-498.026993,0.00028493,7]
[341499754,1730927448857,-559.746466,0.00028493,7]
[341499755,1730927448868,-500.0,0.00028493,2]
[341499756,1730927448877,-500.0,0.00028493,2]
[341499757,1730927448887,-500.0,0.00028493,2]
[341499758,1730927448901,-4959.32,0.00028493,2]
[341499759,1730927448911,-500.0,0.00028493,2]
[341499760,1730927448921,-500.0,0.00028493,2]
[341499761,1730927448931,-659.67,0.00028493,2]
[341499762,1730927448940,-500.0,0.00028493,2]
[341499764,1730927448950,-950.36,0.00028493,2]
[341499765,1730927448960,-210.383978,0.00028493,7]
[341499766,1730927448970,-210.383975,0.00028493,7]
[341499767,1730927448979,-500.0,0.00028493,2]
[341499768,1730927448988,-500.0,0.00028493,2]
[341499769,1730927448998,-500.0,0.00028493,2]
[341499770,1730927449008,-500.0,0.00028493,2]
[341499771,1730927449019,-500.0,0.00028493,2]
[341499772,1730927449028,-500.0,0.00028493,2]
[341499773,1730927449038,-500.0,0.00028493,2]
[341499774,1730927449049,-508.89,0.00028493,2]
[341499775,1730927449058,-500.0,0.00028493,2]
[341499776,1730927449068,-500.0,0.00028493,2]
[341499777,1730927449078,-655.23,0.00028493,2]
[341499778,1730927449088,-587.06013441,0.00028493,2]
[341499779,1730927449098,-500.0,0.00028493,2]
[341499780,1730927449111,-383.40574615,0.00028493,2]
[341499781,1730927449120,-1000.0,0.00028596,2]
[341499782,1730927449130,-466.43402394,0.000287,2]
[341499783,1730927449140,-337.67752292,0.000287,2]
[341499784,1730927449149,-500.0,0.00028723,5]
[341499785,1730927449159,-1007.5564034,0.00028742,2]
[341499786,1730927449172,-1000.0,0.00028742,2]
[341499787,1730927449183,-1000.0,0.00028742,5]
[341499788,1730927449192,-1000.0,0.00028742,5]
[341499789,1730927449201,-500.0,0.00028742,5]
[341499790,1730927449211,-1339.7,0.00028757,3]
[341499791,1730927449221,-669.84,0.00028757,3]
[341499792,1730927449230,-334.92,0.00028757,3]
[341499793,1730927449240,-150.2407842,0.0002876,2]
[341499794,1730927449250,-947.0,0.0002876,2]
[341499795,1730927449259,-199.62787951,0.0002876,7]
[341499796,1730927449271,-158.05900812,0.0002876,2]
[341499797,1730927449281,-150.77528158,0.0002876,2]
[341499798,1730927449290,-500.0,0.0002876,2]
[341499799,1730927449300,-500.0,0.00028767,2]
[341499800,1730927449310,-500.0,0.00028767,2]
[341499801,1730927449320,-500.0,0.00028767,2]
[341499802,1730927449331,-500.0,0.00028767,2]
[341499803,1730927449341,-536.38029989,0.00028767,2]
[341499804,1730927449351,-500.0,0.00028767,2]
[341499805,1730927449363,-576.91,0.00028767,2]
[341499806,1730927449374,-500.0,0.00028767,2]
[341499807,1730927449383,-500.0,0.00028767,2]
[341499808,1730927449393,-1867.2,0.00028767,2]
[341499809,1730927449402,-500.0,0.00028767,2]
[341499810,1730927449412,-500.0,0.00028767,2]
[341499811,1730927449422,-500.0,0.00028767,2]
[341499812,1730927449432,-500.0,0.00028767,2]
[341499813,1730927449442,-500.0,0.00028767,2]
[341499814,1730927449452,-784.82,0.00028767,2]
[341499815,1730927449462,-8019.87,0.00028767,2]
[341499816,1730927449472,-500.0,0.00028767,2]
[341499817,1730927449482,-500.0,0.00028767,2]
[341499818,1730927449492,-500.0,0.00028767,2]
[341499819,1730927449502,-500.0,0.00028767,2]
[341499820,1730927449513,-4959.32,0.00028767,2]
[341499821,1730927449523,-500.0,0.00028767,2]
[341499822,1730927449532,-500.0,0.00028767,2]
[341499823,1730927449541,-659.67,0.00028767,2]
[341499824,1730927449551,-500.0,0.00028767,2]
[341499825,1730927449561,-950.36,0.00028767,2]
[341499826,1730927449570,-500.0,0.00028767,2]
[341499827,1730927449579,-500.0,0.00028767,2]
[341499828,1730927449589,-500.0,0.00028767,2]
[341499829,1730927449599,-500.0,0.00028767,2]
[341499830,1730927449611,-500.0,0.00028767,2]
[341499831,1730927449620,-500.0,0.00028767,2]
[341499832,1730927449630,-500.0,0.00028767,2]
[341499833,1730927449639,-508.89,0.00028767,2]
[341499834,1730927449649,-500.0,0.00028767,2]
[341499835,1730927449659,-500.0,0.00028767,2]
[341499836,1730927449668,-655.23,0.00028767,2]
[341499837,1730927449678,-500.0,0.00028767,2]
[341499838,1730927449687,-451.0,0.00028767,2]
[341499839,1730927449697,-169.0,0.00028767,2]
[341499840,1730927449707,-1285.05,0.000288,14]
[341499841,1730927449716,-12557.64,0.000288,30]
[341499842,1730927449725,-37767.84,0.000288,30]
[341499843,1730927449735,-55013.23,0.000288,14]
[341499844,1730927449745,-740.08,0.000288,14]
[341499845,1730927449755,-153.0,0.00028816,30]